[Event "Titled Tuesday Blitz May 03 Late 2022"]
[White "Mandura, Tijana"]
[Black "Rengifo Blancas, Renzo Jhonathan"]
[WhiteFideId "16500270"]
[BlackFideId "3807185"]
[WhiteElo "2169"]
[BlackElo "2058"]
[Result "1-0"]
[Round "02"]
[TimeControl "180+1"]
[Date "2022.05.03"]
[WhiteClock "0:01:42"]
[BlackClock "0:00:26"]

1. d4 {[%clk 0:03:00]}  d5 {[%clk 0:02:59]} 2. c4 {[%clk 0:02:59]}  c6 {[%clk 0:03:00]} 3. Nc3 {[%clk 0:03:00]}  Nf6 {[%clk 0:03:00]} 4. cxd5 {[%clk 0:02:59]}  cxd5 {[%clk 0:03:01]} 5. Nf3 {[%clk 0:03:00]}  Nc6 {[%clk 0:03:01]} 6. Bf4 {[%clk 0:02:58]}  a6 {[%clk 0:03:01]} 7. e3 {[%clk 0:02:58]}  Qb6 {[%clk 0:02:58]} 8. Qd2 {[%clk 0:02:55]}  e6 {[%clk 0:02:55]} 9. Bd3 {[%clk 0:02:51]}  Nb4 {[%clk 0:02:42]} 10. Bb1 {[%clk 0:02:49]}  Ne4 {[%clk 0:02:37]} 11. Bxe4 {[%clk 0:02:47]}  dxe4 {[%clk 0:02:36]} 12. Nxe4 {[%clk 0:02:48]}  Nd5 {[%clk 0:02:35]} 13. Bg3 {[%clk 0:02:43]}  Bb4 {[%clk 0:02:13]} 14. Nc3 {[%clk 0:02:34]}  Bd7 {[%clk 0:01:55]} 15. a3 {[%clk 0:02:31]}  Bxc3 {[%clk 0:01:50]} 16. bxc3 {[%clk 0:02:32]}  Bb5 {[%clk 0:01:50]} 17. a4 {[%clk 0:02:27]}  Bc4 {[%clk 0:01:47]} 18. Ne5 {[%clk 0:02:27]}  Qb3 {[%clk 0:01:36]} 19. f3 {[%clk 0:02:11]}  Rc8 {[%clk 0:01:34]} 20. Kf2 {[%clk 0:02:11]}  Nxc3 {[%clk 0:01:32]} 21. Rhc1 {[%clk 0:02:08]}  Bd5 {[%clk 0:01:28]} 22. Rab1 {[%clk 0:02:04]}  Nxb1 {[%clk 0:01:21]} 23. Rxc8+ {[%clk 0:02:05]}  Ke7 {[%clk 0:01:22]} 24. Qc2 {[%clk 0:02:03]}  Rxc8 {[%clk 0:00:30]} 25. Qxc8 {[%clk 0:02:00]}  Qc3 {[%clk 0:00:26]} 26. Qd7+ {[%clk 0:01:42]} 1-0


[Site "https://www.chess.com"]

[Event "Titled Tuesday Blitz May 03 Late 2022"]
[White "Bluebaum, Matthias"]
[Black "Meduri, Aakaash"]
[WhiteFideId "24651516"]
[BlackFideId "2032252"]
[WhiteElo "2550"]
[BlackElo "2096"]
[Result "1-0"]
[Round "02"]
[TimeControl "180+1"]
[Date "2022.05.03"]
[WhiteClock "0:00:41"]
[BlackClock "0:00:07"]

1. b3 {[%clk 0:03:00]}  d5 {[%clk 0:02:53]} 2. Bb2 {[%clk 0:03:01]}  Nf6 {[%clk 0:02:52]} 3. Nf3 {[%clk 0:02:59]}  c6 {[%clk 0:02:51]} 4. d3 {[%clk 0:02:57]}  h6 {[%clk 0:02:49]} 5. g3 {[%clk 0:02:56]}  Bf5 {[%clk 0:02:49]} 6. Bg2 {[%clk 0:02:57]}  Nbd7 {[%clk 0:02:49]} 7. O-O {[%clk 0:02:57]}  e6 {[%clk 0:02:49]} 8. Nbd2 {[%clk 0:02:58]}  Be7 {[%clk 0:02:49]} 9. Re1 {[%clk 0:02:59]}  Bh7 {[%clk 0:02:48]} 10. e4 {[%clk 0:03:00]}  O-O {[%clk 0:02:49]} 11. Qe2 {[%clk 0:03:00]}  a5 {[%clk 0:02:47]} 12. a3 {[%clk 0:03:00]}  Rc8 {[%clk 0:02:46]} 13. Rad1 {[%clk 0:03:00]}  Qb6 {[%clk 0:02:46]} 14. h3 {[%clk 0:02:59]}  a4 {[%clk 0:02:37]} 15. b4 {[%clk 0:02:59]}  c5 {[%clk 0:02:34]} 16. exd5 {[%clk 0:02:59]}  Nxd5 {[%clk 0:02:34]} 17. Nc4 {[%clk 0:02:59]}  Qb5 {[%clk 0:02:29]} 18. bxc5 {[%clk 0:02:53]}  Bxc5 {[%clk 0:02:15]} 19. Rb1 {[%clk 0:02:50]}  Qa6 {[%clk 0:02:12]} 20. Nfe5 {[%clk 0:02:47]}  N7f6 {[%clk 0:02:07]} 21. Ng4 {[%clk 0:02:42]}  b5 {[%clk 0:01:34]} 22. Nce5 {[%clk 0:02:33]}  Qa7 {[%clk 0:00:57]} 23. Bxd5 {[%clk 0:02:30]}  Nxd5 {[%clk 0:00:49]} 24. Nxh6+ {[%clk 0:02:30]}  Kh8 {[%clk 0:00:40]} 25. Rf1 {[%clk 0:02:15]}  f6 {[%clk 0:00:33]} 26. Nef7+ {[%clk 0:01:39]}  Rxf7 {[%clk 0:00:33]} 27. Qxe6 {[%clk 0:01:40]}  Rd7 {[%clk 0:00:30]} 28. Nf7+ {[%clk 0:01:39]}  Rxf7 {[%clk 0:00:24]} 29. Qxc8+ {[%clk 0:01:39]}  Rf8 {[%clk 0:00:16]} 30. Qg4 {[%clk 0:01:38]}  Ne7 {[%clk 0:00:08]} 31. Rbe1 {[%clk 0:01:37]}  Ng6 {[%clk 0:00:08]} 32. h4 {[%clk 0:01:35]}  Qc7 {[%clk 0:00:06]} 33. Kh2 {[%clk 0:01:31]}  Ne7 {[%clk 0:00:06]} 34. h5 {[%clk 0:01:30]}  Nf5 {[%clk 0:00:05]} 35. Re2 {[%clk 0:01:27]}  Nh6 {[%clk 0:00:06]} 36. Qf3 {[%clk 0:01:27]}  Bf5 {[%clk 0:00:06]} 37. Qd5 {[%clk 0:01:23]}  Bg4 {[%clk 0:00:06]} 38. f3 {[%clk 0:01:21]}  Bc8 {[%clk 0:00:05]} 39. Bc1 {[%clk 0:01:20]}  Bd6 {[%clk 0:00:05]} 40. Rg1 {[%clk 0:01:02]}  Bb7 {[%clk 0:00:04]} 41. Qxb5 {[%clk 0:00:45]}  Bxf3 {[%clk 0:00:04]} 42. Re8 {[%clk 0:00:46]}  Rxe8 {[%clk 0:00:02]} 43. Qxe8+ {[%clk 0:00:47]}  Ng8 {[%clk 0:00:02]} 44. h6 {[%clk 0:00:45]}  gxh6 {[%clk 0:00:03]} 45. Qg6 {[%clk 0:00:43]}  Qh7 {[%clk 0:00:02]} 46. Qxh7+ {[%clk 0:00:39]}  Kxh7 {[%clk 0:00:03]} 47. Bb2 {[%clk 0:00:40]}  Kg6 {[%clk 0:00:03]} 48. Rf1 {[%clk 0:00:40]}  Bd5 {[%clk 0:00:03]} 49. c4 {[%clk 0:00:40]}  Be6 {[%clk 0:00:02]} 50. Rc1 {[%clk 0:00:39]}  Be5 {[%clk 0:00:02]} 51. d4 {[%clk 0:00:39]}  Bc7 {[%clk 0:00:02]} 52. d5 {[%clk 0:00:39]}  Bf5 {[%clk 0:00:03]} 53. c5 {[%clk 0:00:39]}  Ba5 {[%clk 0:00:02]} 54. Bc3 {[%clk 0:00:39]}  Bxc3 {[%clk 0:00:01]} 55. Rxc3 {[%clk 0:00:40]}  Ne7 {[%clk 0:00:02]} 56. d6 {[%clk 0:00:40]}  Nc6 {[%clk 0:00:02]} 57. Rc4 {[%clk 0:00:40]}  Bd7 {[%clk 0:00:02]} 58. Rxa4 {[%clk 0:00:40]}  Kf7 {[%clk 0:00:03]} 59. Re4 {[%clk 0:00:38]}  f5 {[%clk 0:00:03]} 60. Rh4 {[%clk 0:00:38]}  Kg6 {[%clk 0:00:03]} 61. a4 {[%clk 0:00:37]}  Ne5 {[%clk 0:00:03]} 62. Kg2 {[%clk 0:00:37]}  Bxa4 {[%clk 0:00:02]} 63. Rxa4 {[%clk 0:00:36]}  Nd3 {[%clk 0:00:01]} 64. d7 {[%clk 0:00:36]}  Nxc5 {[%clk 0:00:02]} 65. d8=Q {[%clk 0:00:36]}  Nxa4 {[%clk 0:00:02]} 66. Qd6+ {[%clk 0:00:36]}  Kg5 {[%clk 0:00:03]} 67. Qe7+ {[%clk 0:00:36]}  Kh5 {[%clk 0:00:03]} 68. Qe8+ {[%clk 0:00:36]}  Kg5 {[%clk 0:00:04]} 69. Qxa4 {[%clk 0:00:37]}  Kh5 {[%clk 0:00:04]} 70. Qh4+ {[%clk 0:00:37]}  Kg6 {[%clk 0:00:05]} 71. Kf3 {[%clk 0:00:38]}  Kf7 {[%clk 0:00:04]} 72. Qxh6 {[%clk 0:00:38]}  Kg8 {[%clk 0:00:04]} 73. Kf4 {[%clk 0:00:38]}  Kf7 {[%clk 0:00:04]} 74. Kxf5 {[%clk 0:00:38]}  Kg8 {[%clk 0:00:05]} 75. g4 {[%clk 0:00:39]}  Kf7 {[%clk 0:00:04]} 76. g5 {[%clk 0:00:39]}  Kg8 {[%clk 0:00:05]} 77. Qf6 {[%clk 0:00:39]}  Kh7 {[%clk 0:00:05]} 78. Qe7+ {[%clk 0:00:40]}  Kg8 {[%clk 0:00:06]} 79. g6 {[%clk 0:00:40]}  Kh8 {[%clk 0:00:07]} 80. Qh7# {[%clk 0:00:41]} 1-0


[Site "https://www.chess.com"]

[Event "Titled Tuesday Blitz May 03 Late 2022"]
[White "Carrasco Miranda, Andres"]
[Black "Hirneise, Jens"]
[WhiteFideId "3405990"]
[BlackFideId "24614734"]
[WhiteElo "2177"]
[BlackElo "2359"]
[Result "0-1"]
[Round "02"]
[TimeControl "180+1"]
[Date "2022.05.03"]
[WhiteClock "0:00:55"]
[BlackClock "0:01:04"]

1. d4 {[%clk 0:03:00]}  Nf6 {[%clk 0:02:59]} 2. c4 {[%clk 0:03:00]}  Nc6 {[%clk 0:02:59]} 3. Nf3 {[%clk 0:02:59]}  e6 {[%clk 0:02:56]} 4. a3 {[%clk 0:02:59]}  d5 {[%clk 0:02:53]} 5. cxd5 {[%clk 0:02:57]}  exd5 {[%clk 0:02:53]} 6. Nc3 {[%clk 0:02:57]}  h6 {[%clk 0:02:50]} 7. Bf4 {[%clk 0:02:57]}  a6 {[%clk 0:02:48]} 8. e3 {[%clk 0:02:55]}  Be7 {[%clk 0:02:48]} 9. Bd3 {[%clk 0:02:55]}  O-O {[%clk 0:02:49]} 10. O-O {[%clk 0:02:55]}  Re8 {[%clk 0:02:49]} 11. Rc1 {[%clk 0:02:54]}  Bf8 {[%clk 0:02:44]} 12. Bb1 {[%clk 0:02:54]}  Ne4 {[%clk 0:02:43]} 13. Nd2 {[%clk 0:02:48]}  Nxc3 {[%clk 0:02:38]} 14. Rxc3 {[%clk 0:02:44]}  Bd6 {[%clk 0:02:20]} 15. Qc2 {[%clk 0:02:41]}  g6 {[%clk 0:02:18]} 16. Nf3 {[%clk 0:02:33]}  Bxf4 {[%clk 0:02:13]} 17. exf4 {[%clk 0:02:34]}  Qf6 {[%clk 0:02:13]} 18. Rxc6 {[%clk 0:02:07]}  Qxc6 {[%clk 0:02:09]} 19. Qxc6 {[%clk 0:02:05]}  bxc6 {[%clk 0:02:10]} 20. Ne5 {[%clk 0:02:05]}  a5 {[%clk 0:01:55]} 21. Nxc6 {[%clk 0:02:03]}  Re2 {[%clk 0:01:55]} 22. Ba2 {[%clk 0:01:57]}  Be6 {[%clk 0:01:47]} 23. f5 {[%clk 0:01:46]}  gxf5 {[%clk 0:01:44]} 24. Rb1 {[%clk 0:01:46]}  Kf8 {[%clk 0:01:39]} 25. g3 {[%clk 0:01:41]}  Ra6 {[%clk 0:01:35]} 26. Ne5 {[%clk 0:01:31]}  Rb6 {[%clk 0:01:27]} 27. Nd3 {[%clk 0:01:12]}  Rd2 {[%clk 0:01:24]} 28. Nf4 {[%clk 0:01:02]}  Rbxb2 {[%clk 0:01:23]} 29. Rxb2 {[%clk 0:01:02]}  Rxb2 {[%clk 0:01:23]} 30. Bxd5 {[%clk 0:01:03]}  Ke7 {[%clk 0:01:14]} 31. Bc6 {[%clk 0:00:55]}  Ra2 {[%clk 0:01:06]} 32. d5 {[%clk 0:00:55]}  Bd7 {[%clk 0:01:04]} 0-1


[Site "https://www.chess.com"]

[Event "Titled Tuesday Blitz May 03 Late 2022"]
[White "Dobre, Claudiu-Cristian"]
[Black "Kujawski, Adam"]
[WhiteFideId "1211854"]
[BlackFideId "1100920"]
[WhiteElo "2207"]
[BlackElo "2053"]
[Result "1-0"]
[Round "02"]
[TimeControl "180+1"]
[Date "2022.05.03"]
[WhiteClock "0:00:17"]
[BlackClock "0:00:02"]

1. c4 {[%clk 0:03:00]}  e5 {[%clk 0:02:59]} 2. Nc3 {[%clk 0:03:00]}  Nc6 {[%clk 0:02:59]} 3. Nf3 {[%clk 0:03:00]}  f5 {[%clk 0:02:58]} 4. d4 {[%clk 0:02:59]}  e4 {[%clk 0:02:58]} 5. Ne5 {[%clk 0:02:59]}  Nf6 {[%clk 0:02:58]} 6. Bg5 {[%clk 0:02:56]}  Be7 {[%clk 0:02:57]} 7. e3 {[%clk 0:02:53]}  O-O {[%clk 0:02:56]} 8. Nxc6 {[%clk 0:02:47]}  bxc6 {[%clk 0:02:37]} 9. Qb3 {[%clk 0:02:27]}  Kh8 {[%clk 0:02:36]} 10. Be2 {[%clk 0:02:24]}  d6 {[%clk 0:02:34]} 11. O-O {[%clk 0:02:17]}  Be6 {[%clk 0:02:30]} 12. Qa4 {[%clk 0:01:51]}  Bd7 {[%clk 0:02:13]} 13. c5 {[%clk 0:01:34]}  d5 {[%clk 0:02:13]} 14. b4 {[%clk 0:01:17]}  a6 {[%clk 0:02:07]} 15. Qc2 {[%clk 0:01:10]}  Ng8 {[%clk 0:02:06]} 16. Bf4 {[%clk 0:01:05]}  g5 {[%clk 0:02:06]} 17. Be5+ {[%clk 0:01:05]}  Bf6 {[%clk 0:02:04]} 18. f4 {[%clk 0:00:59]}  Nh6 {[%clk 0:01:35]} 19. Bxf6+ {[%clk 0:00:46]}  Qxf6 {[%clk 0:01:35]} 20. a4 {[%clk 0:00:43]}  Rg8 {[%clk 0:01:34]} 21. Kh1 {[%clk 0:00:42]}  Rg7 {[%clk 0:01:26]} 22. b5 {[%clk 0:00:37]}  Rag8 {[%clk 0:01:02]} 23. g3 {[%clk 0:00:29]}  gxf4 {[%clk 0:01:01]} 24. Rxf4 {[%clk 0:00:29]}  Rxg3 {[%clk 0:00:48]} 25. hxg3 {[%clk 0:00:28]}  Rxg3 {[%clk 0:00:49]} 26. Bf1 {[%clk 0:00:26]}  Ng4 {[%clk 0:00:43]} 27. Rxg4 {[%clk 0:00:26]}  fxg4 {[%clk 0:00:29]} 28. Qh2 {[%clk 0:00:26]}  Rxe3 {[%clk 0:00:24]} 29. Qe5 {[%clk 0:00:25]}  Qxe5 {[%clk 0:00:23]} 30. dxe5 {[%clk 0:00:26]}  axb5 {[%clk 0:00:22]} 31. a5 {[%clk 0:00:26]}  Bc8 {[%clk 0:00:19]} 32. Ne2 {[%clk 0:00:21]}  Ba6 {[%clk 0:00:15]} 33. Nd4 {[%clk 0:00:20]}  Kg7 {[%clk 0:00:08]} 34. Nxc6 {[%clk 0:00:20]}  h5 {[%clk 0:00:06]} 35. Nb4 {[%clk 0:00:20]}  Bc8 {[%clk 0:00:06]} 36. Nxd5 {[%clk 0:00:19]}  Rb3 {[%clk 0:00:03]} 37. a6 {[%clk 0:00:19]}  Bxa6 {[%clk 0:00:03]} 38. Rxa6 {[%clk 0:00:19]}  c6 {[%clk 0:00:02]} 39. Rxc6 {[%clk 0:00:19]}  h4 {[%clk 0:00:02]} 40. Nf4 {[%clk 0:00:17]} 1-0


[Site "https://www.chess.com"]

[Event "Titled Tuesday Blitz May 03 Late 2022"]
[White "Wagner, Dinara"]
[Black "Fernandez Siles, Luis"]
[WhiteFideId "24157570"]
[BlackFideId "2209420"]
[WhiteElo "2216"]
[BlackElo "2212"]
[Result "1-0"]
[Round "02"]
[TimeControl "180+1"]
[Date "2022.05.03"]
[WhiteClock "0:00:25"]
[BlackClock "0:00:02"]

1. Nf3 {[%clk 0:03:00]}  Nf6 {[%clk 0:02:56]} 2. d4 {[%clk 0:03:01]}  g6 {[%clk 0:02:56]} 3. c4 {[%clk 0:03:01]}  Bg7 {[%clk 0:02:56]} 4. g3 {[%clk 0:03:02]}  O-O {[%clk 0:02:56]} 5. Bg2 {[%clk 0:03:03]}  d6 {[%clk 0:02:57]} 6. O-O {[%clk 0:03:03]}  c6 {[%clk 0:02:57]} 7. Nc3 {[%clk 0:03:03]}  Qa5 {[%clk 0:02:57]} 8. e4 {[%clk 0:03:03]}  e5 {[%clk 0:02:56]} 9. d5 {[%clk 0:03:02]}  cxd5 {[%clk 0:02:57]} 10. cxd5 {[%clk 0:03:03]}  Bd7 {[%clk 0:02:58]} 11. a3 {[%clk 0:03:01]}  Rc8 {[%clk 0:02:57]} 12. Bd2 {[%clk 0:02:56]}  Qd8 {[%clk 0:02:56]} 13. Qb3 {[%clk 0:02:48]}  Na6 {[%clk 0:02:40]} 14. Qd1 {[%clk 0:02:29]}  Nc5 {[%clk 0:02:27]} 15. Bg5 {[%clk 0:02:21]}  a5 {[%clk 0:02:14]} 16. Nd2 {[%clk 0:02:19]}  b5 {[%clk 0:02:06]} 17. b4 {[%clk 0:02:06]}  axb4 {[%clk 0:02:01]} 18. axb4 {[%clk 0:02:07]}  Nd3 {[%clk 0:01:42]} 19. Rxa8 {[%clk 0:02:06]}  Rxa8 {[%clk 0:01:40]} 20. Qb3 {[%clk 0:02:07]}  h6 {[%clk 0:01:36]} 21. Be3 {[%clk 0:01:58]}  Ng4 {[%clk 0:01:33]} 22. Nd1 {[%clk 0:01:59]}  Nc1 {[%clk 0:01:25]} 23. Qb2 {[%clk 0:01:47]}  Ne2+ {[%clk 0:01:21]} 24. Kh1 {[%clk 0:01:46]}  f5 {[%clk 0:01:02]} 25. exf5 {[%clk 0:01:09]}  gxf5 {[%clk 0:00:59]} 26. Nb3 {[%clk 0:01:10]}  Nd4 {[%clk 0:00:42]} 27. Nxd4 {[%clk 0:00:55]}  Nxe3 {[%clk 0:00:37]} 28. fxe3 {[%clk 0:00:50]}  exd4 {[%clk 0:00:37]} 29. exd4 {[%clk 0:00:51]}  Qf6 {[%clk 0:00:28]} 30. Qc2 {[%clk 0:00:29]}  Rc8 {[%clk 0:00:18]} 31. Qa2 {[%clk 0:00:27]}  Qxd4 {[%clk 0:00:15]} 32. Nf2 {[%clk 0:00:27]}  Qxb4 {[%clk 0:00:09]} 33. Qa7 {[%clk 0:00:26]}  Be8 {[%clk 0:00:05]} 34. Nh3 {[%clk 0:00:27]}  Bg6 {[%clk 0:00:04]} 35. Nf4 {[%clk 0:00:27]}  Kh7 {[%clk 0:00:02]} 36. Nxg6 {[%clk 0:00:26]}  Kxg6 {[%clk 0:00:03]} 37. Qd7 {[%clk 0:00:25]}  Qc5 {[%clk 0:00:02]} 38. Qxf5# {[%clk 0:00:25]} 1-0


[Site "https://www.chess.com"]

[Event "Titled Tuesday Blitz May 03 Late 2022"]
[White "Drygalov, Sergey"]
[Black "Stoleriu, George"]
[WhiteFideId "24171743"]
[BlackFideId "1227505"]
[WhiteElo "2514"]
[BlackElo "2178"]
[Result "1-0"]
[Round "02"]
[TimeControl "180+1"]
[Date "2022.05.03"]
[WhiteClock "0:01:24"]
[BlackClock "0:01:13"]

1. d4 {[%clk 0:02:59]}  e6 {[%clk 0:02:59]} 2. c4 {[%clk 0:02:59]}  Nf6 {[%clk 0:02:58]} 3. Nc3 {[%clk 0:02:59]}  Bb4 {[%clk 0:02:58]} 4. a3 {[%clk 0:02:59]}  Bxc3+ {[%clk 0:02:57]} 5. bxc3 {[%clk 0:03:00]}  b6 {[%clk 0:02:55]} 6. e3 {[%clk 0:02:59]}  O-O {[%clk 0:02:50]} 7. Bd3 {[%clk 0:02:59]}  c5 {[%clk 0:02:48]} 8. Ne2 {[%clk 0:02:58]}  Ba6 {[%clk 0:02:48]} 9. e4 {[%clk 0:02:56]}  Ne8 {[%clk 0:02:48]} 10. O-O {[%clk 0:02:52]}  Nc6 {[%clk 0:02:48]} 11. f4 {[%clk 0:02:53]}  Na5 {[%clk 0:02:47]} 12. f5 {[%clk 0:02:52]}  exf5 {[%clk 0:02:42]} 13. exf5 {[%clk 0:02:45]}  f6 {[%clk 0:02:35]} 14. Bf4 {[%clk 0:02:34]}  Kh8 {[%clk 0:02:33]} 15. Rf3 {[%clk 0:02:27]}  Bxc4 {[%clk 0:02:33]} 16. Rh3 {[%clk 0:02:21]}  Bg8 {[%clk 0:02:31]} 17. Be3 {[%clk 0:02:13]}  c4 {[%clk 0:02:29]} 18. Bc2 {[%clk 0:02:12]}  Bf7 {[%clk 0:02:03]} 19. Nf4 {[%clk 0:02:12]}  Kg8 {[%clk 0:02:02]} 20. Ng6 {[%clk 0:02:12]}  Bxg6 {[%clk 0:01:47]} 21. fxg6 {[%clk 0:02:13]}  h6 {[%clk 0:01:48]} 22. Qh5 {[%clk 0:02:05]}  Qe7 {[%clk 0:01:46]} 23. Qd5+ {[%clk 0:02:05]}  Qe6 {[%clk 0:01:43]} 24. Qxa8 {[%clk 0:02:05]}  Nc6 {[%clk 0:01:43]} 25. d5 {[%clk 0:01:55]}  Qxd5 {[%clk 0:01:43]} 26. Rd1 {[%clk 0:01:55]}  Qe6 {[%clk 0:01:43]} 27. Qc8 {[%clk 0:01:55]}  Nd6 {[%clk 0:01:40]} 28. Qc7 {[%clk 0:01:55]}  Nb5 {[%clk 0:01:40]} 29. Qxd7 {[%clk 0:01:55]}  Qxd7 {[%clk 0:01:37]} 30. Rxd7 {[%clk 0:01:56]}  Nxc3 {[%clk 0:01:36]} 31. Bxh6 {[%clk 0:01:56]}  Ne2+ {[%clk 0:01:36]} 32. Kf2 {[%clk 0:01:57]}  gxh6 {[%clk 0:01:35]} 33. Kxe2 {[%clk 0:01:58]}  Re8+ {[%clk 0:01:35]} 34. Kf2 {[%clk 0:01:57]}  Ne5 {[%clk 0:01:36]} 35. Rd4 {[%clk 0:01:54]}  Kg7 {[%clk 0:01:18]} 36. Re3 {[%clk 0:01:53]}  Rc8 {[%clk 0:01:17]} 37. Bf5 {[%clk 0:01:46]}  Rc5 {[%clk 0:01:15]} 38. g4 {[%clk 0:01:29]}  c3 {[%clk 0:01:13]} 39. Rxe5 {[%clk 0:01:24]}  fxe5 {[%clk 0:01:13]} 40. Rd7+ {[%clk 0:01:23]}  Kf6 {[%clk 0:01:13]} 41. Rf7+ {[%clk 0:01:24]}  Kg5 {[%clk 0:01:13]} 42. g7 {[%clk 0:01:24]} 1-0


[Site "https://www.chess.com"]

[Event "Titled Tuesday Blitz May 03 Late 2022"]
[White "Ezat, Mohamed"]
[Black "Licznerski, Lukasz"]
[WhiteFideId "10600906"]
[BlackFideId "1179250"]
[WhiteElo "2386"]
[BlackElo "2422"]
[Result "1/2-1/2"]
[Round "02"]
[TimeControl "180+1"]
[Date "2022.05.03"]
[WhiteClock "0:00:08"]
[BlackClock "0:00:07"]

1. d4 {[%clk 0:03:00]}  Nf6 {[%clk 0:02:59]} 2. c4 {[%clk 0:03:01]}  g6 {[%clk 0:02:59]} 3. Nc3 {[%clk 0:03:01]}  d5 {[%clk 0:02:59]} 4. Bg5 {[%clk 0:02:59]}  Bg7 {[%clk 0:02:59]} 5. Bxf6 {[%clk 0:02:59]}  Bxf6 {[%clk 0:03:00]} 6. cxd5 {[%clk 0:02:59]}  c6 {[%clk 0:03:00]} 7. e3 {[%clk 0:02:56]}  cxd5 {[%clk 0:02:59]} 8. h4 {[%clk 0:02:55]}  h5 {[%clk 0:02:58]} 9. Nge2 {[%clk 0:02:52]}  Nc6 {[%clk 0:02:49]} 10. Nf4 {[%clk 0:02:51]}  e6 {[%clk 0:02:49]} 11. a3 {[%clk 0:02:48]}  Bd7 {[%clk 0:02:47]} 12. Rc1 {[%clk 0:02:46]}  Na5 {[%clk 0:02:28]} 13. g3 {[%clk 0:02:40]}  Rc8 {[%clk 0:02:18]} 14. Bd3 {[%clk 0:02:31]}  Nc4 {[%clk 0:02:06]} 15. Qe2 {[%clk 0:02:27]}  Kf8 {[%clk 0:01:27]} 16. O-O {[%clk 0:02:25]}  Kg7 {[%clk 0:01:26]} 17. Rfd1 {[%clk 0:02:20]}  Nd6 {[%clk 0:01:15]} 18. Nb5 {[%clk 0:01:54]}  Bxb5 {[%clk 0:01:08]} 19. Bxb5 {[%clk 0:01:54]}  a6 {[%clk 0:01:07]} 20. Bd3 {[%clk 0:01:53]}  b5 {[%clk 0:01:06]} 21. b3 {[%clk 0:01:46]}  Qa5 {[%clk 0:01:05]} 22. Qb2 {[%clk 0:01:35]}  Be7 {[%clk 0:00:54]} 23. Rxc8 {[%clk 0:01:20]}  Rxc8 {[%clk 0:00:53]} 24. Rc1 {[%clk 0:01:19]}  Rc7 {[%clk 0:00:48]} 25. Qb1 {[%clk 0:00:57]}  Rxc1+ {[%clk 0:00:36]} 26. Qxc1 {[%clk 0:00:56]}  Ne4 {[%clk 0:00:30]} 27. b4 {[%clk 0:00:51]}  Qb6 {[%clk 0:00:30]} 28. Qc2 {[%clk 0:00:48]}  Qb7 {[%clk 0:00:24]} 29. Kg2 {[%clk 0:00:45]}  Bd6 {[%clk 0:00:20]} 30. f3 {[%clk 0:00:44]}  Bxf4 {[%clk 0:00:16]} 31. fxe4 {[%clk 0:00:44]}  Bxe3 {[%clk 0:00:16]} 32. Qc3 {[%clk 0:00:30]}  dxe4 {[%clk 0:00:13]} 33. Be2 {[%clk 0:00:29]}  Bh6 {[%clk 0:00:09]} 34. d5+ {[%clk 0:00:29]}  Kh7 {[%clk 0:00:04]} 35. dxe6 {[%clk 0:00:29]}  fxe6 {[%clk 0:00:05]} 36. Qf6 {[%clk 0:00:27]}  e3+ {[%clk 0:00:05]} 37. Bf3 {[%clk 0:00:25]}  Qg7 {[%clk 0:00:03]} 38. Qxe6 {[%clk 0:00:24]}  Qb2+ {[%clk 0:00:03]} 39. Kh3 {[%clk 0:00:23]}  Qg7 {[%clk 0:00:03]} 40. Qe4 {[%clk 0:00:18]}  Qf7 {[%clk 0:00:02]} 41. Bg2 {[%clk 0:00:15]}  Qd7+ {[%clk 0:00:03]} 42. Kh2 {[%clk 0:00:15]}  Qc7 {[%clk 0:00:02]} 43. Bf3 {[%clk 0:00:15]}  Qg7 {[%clk 0:00:03]} 44. Bxh5 {[%clk 0:00:13]}  Qf6 {[%clk 0:00:02]} 45. Bf3 {[%clk 0:00:13]}  Kg8 {[%clk 0:00:02]} 46. Qa8+ {[%clk 0:00:11]}  Bf8 {[%clk 0:00:03]} 47. Qd5+ {[%clk 0:00:11]}  Kg7 {[%clk 0:00:03]} 48. Qe4 {[%clk 0:00:12]}  Qe7 {[%clk 0:00:02]} 49. Qd4+ {[%clk 0:00:11]}  Kh7 {[%clk 0:00:02]} 50. Be4 {[%clk 0:00:09]}  e2 {[%clk 0:00:02]} 51. Qe3 {[%clk 0:00:07]}  Bh6 {[%clk 0:00:01]} 52. Qxe2 {[%clk 0:00:07]}  Qg7 {[%clk 0:00:02]} 53. Qd3 {[%clk 0:00:07]}  Qb2+ {[%clk 0:00:02]} 54. Kh3 {[%clk 0:00:06]}  Qf6 {[%clk 0:00:02]} 55. h5 {[%clk 0:00:07]}  Qe6+ {[%clk 0:00:03]} 56. g4 {[%clk 0:00:06]}  Kg7 {[%clk 0:00:04]} 57. Bxg6 {[%clk 0:00:05]}  Qe3+ {[%clk 0:00:04]} 58. Qxe3 {[%clk 0:00:05]}  Bxe3 {[%clk 0:00:05]} 59. Be4 {[%clk 0:00:06]}  Bc1 {[%clk 0:00:04]} 60. Bb7 {[%clk 0:00:06]}  Kh6 {[%clk 0:00:03]} 61. Kh4 {[%clk 0:00:06]}  Bg5+ {[%clk 0:00:03]} 62. Kg3 {[%clk 0:00:06]}  Bc1 {[%clk 0:00:04]} 63. Kf3 {[%clk 0:00:06]}  Bxa3 {[%clk 0:00:03]} 64. Kf4 {[%clk 0:00:06]}  Bc1+ {[%clk 0:00:03]} 65. Kf5 {[%clk 0:00:07]}  Bd2 {[%clk 0:00:01]} 66. Bxa6 {[%clk 0:00:06]}  Bxb4 {[%clk 0:00:02]} 67. Bxb5 {[%clk 0:00:06]}  Bd2 {[%clk 0:00:02]} 68. Be8 {[%clk 0:00:05]}  Bg5 {[%clk 0:00:03]} 69. Bg6 {[%clk 0:00:06]}  Bc1 {[%clk 0:00:04]} 70. g5+ {[%clk 0:00:05]}  Bxg5 {[%clk 0:00:05]} 71. Bf7 {[%clk 0:00:06]}  Bc1 {[%clk 0:00:06]} 72. Bg6 {[%clk 0:00:06]}  Bg5 {[%clk 0:00:06]} 73. Bf7 {[%clk 0:00:07]}  Bc1 {[%clk 0:00:07]} 74. Bg6 {[%clk 0:00:08]}  Bg5 {[%clk 0:00:07]} 1/2-1/2


[Site "https://www.chess.com"]